bitfinex-derivatives/quotes_SOLF0:USTF0_20240827
["timestamp","ask_amount","ask_price","bid_price","bid_amount"]
[1724802313196,0.05027867,147.46,147.41,28.61]
[1724802313495,0.05027867,147.46,147.41,32.03628458]
[1724802314204,0.05027867,147.46,147.45,3.3901]
[1724802317994,0.05027867,147.46,147.42,1.2483]
[1724802318516,0.05027867,147.46,147.45,3.3901]
[1724802322001,8.383,147.55,147.5,3.3889]
[1724802322302,29.9078,147.58,147.47,28.61]
[1724802322514,31.1272,147.58,147.47,28.61]
[1724802323003,0.04481719,147.53,147.51,0.04747636]
[1724802323203,0.04481719,147.53,147.52,3.3885]
[1724802323913,0.04481719,147.53,147.51,3.43617636]
[1724802325007,0.04481719,147.53,147.51,0.04747636]
[1724802325398,3.43311719,147.53,147.51,0.04747636]
[1724802325801,0.04481719,147.53,147.51,0.04747636]
[1724802326806,3.43271719,147.53,147.51,0.04747636]
[1724802327007,0.04481719,147.53,147.51,0.04747636]
[1724802335110,3.3881,147.52,147.51,0.04747636]
[1724802335311,4.7134,147.52,147.51,0.04747636]
[1724802337522,29.9353,147.52,147.41,92.15036591]
[1724802337815,28.61,147.5,147.41,85.03036591]
[1724802338005,11.45,147.49,147.46,3.3894]
[1724802338403,11.49889283,147.49,147.47,3.3893]
[1724802339210,11.49889283,147.49,147.46,3.41176424]
[1724802341426,11.45,147.48,147.46,0.02226424]
[1724802341626,11.45,147.47,147.46,0.02226424]
[1724802341839,11.45,147.47,147.41,81.60408133]
[1724802342039,2.5761,147.52,147.41,84.99458133]
[1724802342040,11.45,147.44,147.41,84.99458133]
[1724802343017,11.49822801,147.44,147.41,84.99458133]
[1724802346116,11.49822801,147.44,147.41,81.60408133]
[1724802346323,0.04822801,147.44,147.37,11.45]
[1724802346524,0.0504322,147.42,147.37,11.45]
[1724802347219,11.45,147.41,147.34,1.2544]
[1724802347429,0.04981928,147.39,147.34,12.7044]
[1724802347724,0.04981928,147.39,147.37,3.3914]
[1724802350921,11.49981928,147.39,147.32,7.12]
[1724802351121,11.49981928,147.39,147.25,40.22677287]
[1724802351122,11.45,147.37,147.3,11.45]
[1724802351323,0.04373744,147.35,147.31,1.24616796]
[1724802351523,0.04373744,147.35,147.31,4.66305032]
[1724802351726,0.04373744,147.35,147.31,3.41688236]
[1724802352137,0.04373744,147.35,147.34,3.3923]
[1724802353323,31.2179,147.44,147.38,3.3913]
[1724802353527,3.3903,147.43,147.38,3.3913]
[1724802353928,31.2179,147.44,147.38,3.3913]
[1724802354127,0.04709038,147.42,147.4,0.04373744]
[1724802354931,0.04709038,147.42,147.4,3.43463744]
[1724802356326,0.04709038,147.42,147.41,3.3907]
[1724802359134,0.04709038,147.42,147.4,3.43453744]
[1724802359361,0.04709038,147.42,147.4,0.04373744]
[1724802359932,0.04709038,147.42,147.41,3.3907]
[1724802370242,0.04709038,147.42,147.4,0.04373744]
[1724802372239,0.04709038,147.42,147.41,3.3907]
[1724802374749,0.04709038,147.42,147.4,0.04373744]
[1724802376449,0.04709038,147.42,147.41,3.3907]
[1724802382446,0.04709038,147.42,147.41,14.8507]
[1724802386050,1.308,147.49,147.45,3.3897]
[1724802386353,11.46,147.52,147.46,11.46]
[1724802387046,0.05065092,147.5,147.48,0.04355688]
[1724802391258,0.05065092,147.5,147.49,3.3888]
[1724802395457,0.05065092,147.5,147.48,3.43255688]
[1724802395660,11.51065092,147.5,147.48,3.43255688]
[1724802396451,0.05065092,147.5,147.48,3.43255688]
[1724802397585,0.05065092,147.5,147.49,3.3888]
[1724802401368,1.3231,147.57,147.52,3.3881]
[1724802401772,11.46,147.54,147.48,7.02]
[1724802401973,11.46,147.54,147.48,18.48]
[1724802402163,11.46,147.54,147.5,3.3884]
[1724802402369,0.045508,147.53,147.51,0.04521501]
[1724802402872,0.045508,147.53,147.51,3.43351501]
[1724802405871,0.045508,147.53,147.52,3.3881]
[1724802411370,0.045508,147.53,147.51,3.43351501]
[1724802411577,11.46,147.52,147.51,0.04521501]
[1724802411881,0.045508,147.53,147.45,3.3896]
[1724802412073,3.38303225,147.56,147.43,7.02]
[1724802412074,2.5415,147.51,147.43,7.02]
[1724802412277,11.46,147.49,147.44,11.46]
[1724802412875,0.04587654,147.48,147.45,0.04514752]
[1724802413185,0.04587654,147.48,147.45,3.43484752]
[1724802413391,0.04587654,147.48,147.45,0.04514752]
[1724802413577,0.04587654,147.48,147.45,3.43484752]
[1724802413774,0.04587654,147.48,147.45,0.04514752]
[1724802414277,0.04587654,147.48,147.46,3.3895]
[1724802416188,0.04587654,147.48,147.47,18.27153413]
[1724802416374,0.04587654,147.48,147.47,14.8493]
[1724802416983,0.04587654,147.48,147.47,18.16616686]
[1724802421177,0.04587654,147.48,147.47,14.77686686]
[1724802421392,0.04587654,147.48,147.47,3.3893]
[1724802424093,0.04587654,147.48,147.47,18.20004701]
[1724802427696,0.04587654,147.48,147.47,6.74004701]
[1724802428587,0.04587654,147.48,147.47,3.3893]
[1724802429590,0.04587654,147.48,147.45,0.04514752]
[1724802429798,0.04587654,147.48,147.46,11.46]
[1724802429993,0.04587654,147.48,147.47,3.3893]
[1724802431795,0.04587654,147.48,147.45,0.04514752]
[1724802432199,0.04587654,147.48,147.46,3.3895]
[1724802432494,0.04587654,147.48,147.45,0.04514752]
[1724802433595,0.04587654,147.48,147.46,3.3894]
[1724802434393,0.04587654,147.48,147.47,3.3893]
[1724802435902,0.04587654,147.48,147.46,3.3894]
[1724802436097,0.04587654,147.48,147.45,0.04514752]
[1724802436612,0.04587654,147.48,147.46,3.3895]
[1724802437098,0.04587654,147.48,147.47,3.3893]
[1724802438402,0.04587654,147.48,147.46,3.3894]
[1724802443410,0.04587654,147.48,147.47,3.3893]
[1724802446710,0.04587654,147.48,147.46,3.3894]
[1724802448214,0.04587654,147.48,147.47,3.3893]
[1724802448706,0.04587654,147.48,147.46,3.3894]
[1724802450114,0.04587654,147.48,147.47,3.3893]
[1724802451015,0.04587654,147.48,147.47,18.20332026]
[1724802451309,11.46,147.57,147.47,60.65402026]
[1724802451517,11.46,147.57,147.51,11.46]
[1724802452011,11.46,147.57,147.52,3.388]
[1724802452205,11.46,147.55,147.53,0.04679936]
[1724802455219,11.46,147.54,147.53,0.04679936]
[1724802455430,11.46,147.54,147.45,1.1441]
[1724802455431,12.6804,147.54,147.4,45.84]
[1724802455709,12.6804,147.54,147.47,11.46]
[1724802455916,12.6804,147.54,147.48,14.8084801]
[1724802456111,1.2204,147.54,147.49,11.46]
[1724802456315,1.2204,147.54,147.5,3.3725309]
[1724802456618,0.05221787,147.53,147.5,3.42012054]
[1724802457116,0.05221787,147.53,147.51,11.46]
[1724802457315,0.05221787,147.53,147.5,3.42012054]
[1724802457316,0.05221787,147.53,147.52,14.8481]
[1724802458817,0.05221787,147.53,147.52,3.3881]
[1724802460216,0.05221787,147.53,147.52,14.8481]
[1724802461416,1.2188,147.59,147.55,3.3874]
[1724802461621,1.2188,147.59,147.55,14.8474]
[1724802461923,1.2188,147.59,147.55,3.3874]
[1724802462317,0.04595744,147.58,147.56,0.04667342]
[1724802462519,11.46,147.57,147.56,0.04667342]
[1724802462714,1.2864,147.57,147.5,3.3725309]
[1724802463019,11.46,147.54,147.52,3.3881]
[1724802463419,11.46,147.55,147.52,3.3881]
[1724802463625,11.51197799,147.55,147.52,3.43773675]
[1724802465011,0.05197799,147.55,147.52,3.43773675]
[1724802465215,0.05197799,147.55,147.53,3.3879]
[1724802465414,0.05197799,147.55,147.52,11.50963675]
[1724802465920,0.05197799,147.55,147.54,11.46]
[1724802467418,0.05197799,147.55,147.54,14.8477]
[1724802471332,1.2412,147.62,147.54,11.46]
[1724802471523,1.2412,147.62,147.58,11.46]
[1724802471731,1.2412,147.62,147.57,11.46]
[1724802471922,4.6272,147.62,147.57,3.3869]
[1724802472226,11.46,147.61,147.57,3.3869]
[1724802472428,0.04676722,147.6,147.58,0.04457428]
[1724802472922,0.04676722,147.6,147.59,14.8465]
[1724802473318,0.04676722,147.6,147.58,0.04457428]
[1724802474223,1.2781,147.65,147.59,11.46]
[1724802474724,1.2781,147.65,147.61,3.3861]
[1724802475127,0.04833628,147.64,147.61,3.3861]
[1724802475430,0.04833628,147.64,147.62,0.05082985]
[1724802477234,0.04833628,147.64,147.63,11.46]
[1724802478027,0.04833628,147.64,147.62,0.05082985]
[1724802478426,0.04833628,147.64,147.63,3.3856]
[1724802481335,0.04833628,147.64,147.62,3.43662985]
[1724802483636,0.04833628,147.64,147.63,3.3856]
[1724802490537,3.43373628,147.64,147.62,0.05082985]
[1724802491044,0.04833628,147.64,147.62,0.05082985]
[1724802491337,3.3856,147.63,147.62,0.05082985]
[1724802491844,3.3862,147.61,147.58,3.3867]
[1724802492844,3.3862,147.61,147.58,3.42948593]
[1724802492845,3.43468564,147.61,147.58,3.42948593]
[1724802493743,3.43468564,147.61,147.58,0.04278593]
[1724802494338,3.43468564,147.61,147.58,3.42948593]
[1724802496743,3.3864,147.6,147.58,0.04278593]
[1724802501045,3.3865,147.59,147.58,0.04278593]
[1724802501446,3.3869,147.58,147.55,3.3873]
[1724802502443,3.42988061,147.58,147.55,3.43919956]
[1724802502638,0.04298061,147.58,147.55,3.43919956]
[1724802504348,3.42978061,147.58,147.55,3.43919956]
[1724802505552,3.42978061,147.58,147.55,0.05189956]
[1724802507051,0.04298061,147.58,147.55,0.05189956]
[1724802507971,3.3871,147.57,147.55,0.05189956]
[1724802511458,0.04298061,147.58,147.55,0.05189956]
[1724802512058,3.42988061,147.58,147.55,0.05189956]
[1724802513356,3.387,147.57,147.55,0.05189956]
[1724802515864,14.8372,147.56,147.55,0.05189956]
[1724802516165,3.3872,147.56,147.55,0.05189956]
[1724802517060,0.04298061,147.58,147.55,3.43919956]
[1724802518160,0.04298061,147.58,147.57,11.45]
[1724802518769,0.04298061,147.58,147.55,11.50189956]
[1724802519366,0.04298061,147.58,147.55,14.88909956]
[1724802519668,0.04298061,147.58,147.55,11.50189956]
[1724802521465,0.04298061,147.58,147.56,3.3872]
[1724802523768,0.04298061,147.58,147.55,11.50189956]
[1724802523968,0.04298061,147.58,147.57,11.45]
[1724802524470,0.04298061,147.58,147.57,14.837]
[1724802527474,0.04298061,147.58,147.56,3.3871]
[1724802530169,0.04298061,147.58,147.55,11.50189956]
[1724802530767,0.04298061,147.58,147.56,3.3872]
[1724802531169,0.04298061,147.58,147.55,0.05189956]
[1724802531377,3.42988061,147.58,147.55,0.05189956]
[1724802532668,0.04298061,147.58,147.55,0.05189956]
[1724802532875,1.36068061,147.58,147.55,0.05189956]
[1724802533579,3.3871,147.57,147.55,0.05189956]
[1724802534277,3.3872,147.56,147.55,0.05189956]
[1724802535470,11.45,147.56,147.47,86.4484678]
[1724802535674,11.45,147.53,147.48,3.389]
[1724802536386,0.04600504,147.52,147.49,0.04301816]
[1724802537277,3.43430504,147.52,147.49,0.04301816]
[1724802539685,3.3886,147.5,147.49,0.04301816]
[1724802540186,3.3891,147.48,147.47,74.9984678]
[1724802540419,3.3891,147.48,147.44,3.366532]
[1724802541285,0.04351941,147.47,147.44,6.756532]
[1724802541783,0.04351941,147.47,147.44,3.39]
[1724802542281,0.04351941,147.47,147.43,3.3901]
[1724802542282,3.43281941,147.47,147.43,3.3901]
[1724802542482,14.88281941,147.47,147.42,11.45]
[1724802542687,0.04783649,147.46,147.42,11.45]
[1724802542900,3.3898,147.45,147.42,11.45]
[1724802543085,0.04783649,147.46,147.42,11.45]
[1724802543680,3.43753649,147.46,147.42,3.3904]
[1724802544291,0.04783649,147.46,147.43,3.3902]
[1724802544497,0.04783649,147.46,147.44,11.45]
[1724802544690,0.04783649,147.46,147.45,11.45]
[1724802545684,11.45,147.55,147.45,57.25]
[1724802545885,11.45,147.54,147.47,11.45]
[1724802546186,3.3884,147.51,147.47,11.45]
[1724802546588,3.3889,147.49,147.48,0.05049962]
[1724802546793,3.3889,147.49,147.47,0.0455115]
[1724802547499,14.8391,147.48,147.47,0.0455115]
[1724802548494,3.3894,147.47,147.43,3.3901]
[1724802548884,3.9314,147.49,147.45,3.3896]
[1724802549492,0.04728644,147.48,147.45,3.3896]
[1724802549989,0.04728644,147.48,147.44,3.3899]
[1724802550393,3.43648644,147.48,147.44,3.3899]
[1724802555594,0.04728644,147.48,147.44,3.3899]
[1724802555995,0.04728644,147.48,147.45,3.3897]
[1724802556297,0.04728644,147.48,147.43,11.45]
[1724802556797,0.04728644,147.48,147.45,3.3896]
[1724802559899,0.04728644,147.48,147.45,11.45]
[1724802560496,0.04728644,147.48,147.47,3.3893]
[1724802561899,0.04728644,147.48,147.44,3.31031082]
[1724802562098,0.04728644,147.48,147.43,11.45]
[1724802563094,0.04728644,147.48,147.42,11.45]
[1724802564297,3.43648644,147.48,147.44,3.3899]
[1724802567294,11.45,147.47,147.41,6.82]
[1724802568103,11.49728644,147.48,147.42,11.45]
[1724802568307,0.04728644,147.48,147.43,11.45]
[1724802568601,0.04728644,147.48,147.45,3.3895]
[1724802569293,0.04728644,147.48,147.41,6.82]
[1724802569496,11.45,147.47,147.4,18.27]
[1724802569710,0.0447165,147.45,147.4,18.27]
[1724802570739,0.0447165,147.45,147.38,8.1435]
[1724802571006,11.45,147.44,147.39,3.391]
[1724802571504,14.84,147.44,147.39,3.391]
[1724802571701,11.45,147.44,147.39,3.391]
[1724802573313,14.84,147.44,147.39,3.391]
[1724802576707,11.45,147.44,147.38,6.82]
[1724802576920,11.45,147.44,147.4,3.3909]
[1724802577909,14.84,147.44,147.4,3.3909]
[1724802580148,11.45,147.42,147.36,14.8179207]
[1724802580317,0.04323274,147.4,147.36,11.45]
[1724802580518,0.04323274,147.4,147.35,6.78]
[1724802580712,0.04323274,147.4,147.34,136.96019223]
[1724802582319,0.04323274,147.4,147.37,3.3915]
[1724802587218,0.04323274,147.4,147.36,3.3917]
[1724802587515,11.45,147.39,147.33,6.78]
[1724802587712,11.45,147.38,147.32,81.7784678]
[1724802587939,0.05081576,147.36,147.34,3.392]
[1724802588528,0.05081576,147.36,147.35,3.392]
[1724802595119,11.50081576,147.36,147.32,74.9984678]
[1724802595529,11.50081576,147.36,147.32,78.3910678]
[1724802595917,11.50081576,147.36,147.33,3.3925]
[1724802598333,11.50081576,147.36,147.32,78.3911678]
[1724802598635,0.05081576,147.36,147.32,78.3911678]
[1724802598825,11.45,147.35,147.32,78.3911678]
[1724802599426,11.45,147.35,147.33,3.3925]
[1724802600424,0.05081576,147.36,147.25,2.5258]
[1724802600425,11.45,147.34,147.25,2.5258]
[1724802600678,0.04752866,147.31,147.26,1.24646055]
[1724802600927,0.04752866,147.31,147.3,3.3932]
[1724802603222,0.04752866,147.31,147.27,3.3937]
[1724802603515,11.45,147.3,147.25,3.3906763]
[1724802603735,11.45,147.3,147.28,3.3936]
[1724802604622,11.45,147.3,147.27,6.72342533]
[1724802604820,11.45,147.3,147.27,3.3938]
[1724802606327,11.45,147.3,147.26,6.7640947]
[1724802606532,11.45,147.29,147.26,3.3941]
[1724802607022,11.45,147.27,147.24,4.3945]
[1724802607221,11.49396044,147.27,147.24,4.3945]
[1724802607967,11.45,147.25,147.24,1.0]
[1724802609731,11.45,147.26,147.24,1.0]
[1724802610030,0.04396044,147.27,147.24,1.0]
[1724802610229,11.45,147.26,147.24,1.0]
[1724802610422,11.45,147.25,147.24,1.0]
[1724802610622,0.04411366,147.22,147.16,17.41984098]
[1724802610824,0.04411366,147.22,147.18,11.45]
[1724802611025,0.04411366,147.22,147.19,1.24712855]
[1724802611533,0.04411366,147.22,147.2,3.3953]
[1724802611734,0.04411366,147.22,147.18,11.45]
[1724802612086,0.04411366,147.22,147.2,3.3953]
[1724802612233,0.04411366,147.22,147.16,41.38984098]
[1724802612439,0.04411366,147.22,147.18,28.68]
[1724802612623,0.04411366,147.22,147.21,3.3953]
[1724802613844,0.04411366,147.22,147.19,3.3956]
[1724802614141,0.04411366,147.22,147.16,12.70984098]
[1724802614142,0.04411366,147.22,147.16,11.47024098]
[1724802614336,28.72411366,147.22,147.17,4.64323058]
[1724802614537,28.72411366,147.22,147.17,3.3961]
[1724802614736,28.72411366,147.22,147.17,3.31751796]
[1724802614935,28.72411366,147.22,147.14,6.74]
[1724802615151,28.72411366,147.22,147.15,1.24723835]
[1724802615356,28.72411366,147.22,147.18,3.3958]
[1724802616458,32.11921366,147.22,147.17,3.3961]
[1724802616847,0.04411366,147.22,147.18,3.3958]
[1724802617049,0.04411366,147.22,147.14,38.7619564]
[1724802617250,0.04411366,147.22,147.15,1.24719833]
[1724802617453,0.04411366,147.22,147.18,3.3958]
[1724802617861,0.04411366,147.22,147.14,38.7619564]
[1724802618155,0.04411366,147.22,147.16,28.68]
[1724802618453,0.04411366,147.22,147.17,1.24718887]
[1724802618655,0.04411366,147.22,147.19,3.3955]
[1724802618852,0.04411366,147.22,147.12,29.9203]
[1724802618853,28.68,147.2,147.06,6.7974]
[1724802619053,0.04596814,147.16,147.1,29.92728056]
[1724802619358,0.04596814,147.16,147.15,3.3967]
[1724802620054,0.04596814,147.16,147.15,6.8057856]
[1724802620981,0.04596814,147.16,147.11,28.68]
[1724802621149,0.04596814,147.16,147.12,1.24746484]
[1724802621450,0.04596814,147.16,147.11,28.68]
[1724802621655,0.04596814,147.16,147.14,3.3967]
[1724802622752,0.04596814,147.16,147.13,3.3971]
[1724802622941,0.04596814,147.16,147.11,6.74]
[1724802623146,0.04596814,147.16,147.09,77.27029895]
[1724802623353,0.04596814,147.16,147.1,4.64530807]
[1724802623549,0.04596814,147.16,147.11,3.37014403]
[1724802623756,0.04596814,147.16,147.09,77.27029895]
[1724802623948,3.44256814,147.16,147.11,3.3976]
[1724802624168,0.04596814,147.16,147.11,3.32634064]
[1724802624355,0.04596814,147.16,147.09,77.27029895]
[1724802624557,0.04596814,147.16,147.1,1.24762239]
[1724802624757,0.04596814,147.16,147.1,3.436698]
[1724802624946,3.3967,147.15,147.1,6.834398]
[1724802625959,0.04596814,147.16,147.1,3.436698]
[1724802626153,0.04596814,147.16,147.09,77.27029895]
[1724802626458,0.04596814,147.16,147.1,1.24754592]
[1724802626654,3.44236814,147.16,147.11,6.87410047]
[1724802627148,3.44236814,147.16,147.11,3.3974]
[1724802627358,0.04596814,147.16,147.12,6.76156394]
[1724802627967,0.04596814,147.16,147.12,3.3973]
[1724802628265,0.04596814,147.16,147.11,32.0588705]
[1724802628561,0.04596814,147.16,147.11,3.4192933]
[1724802628773,0.04596814,147.16,147.09,105.95029895]
[1724802629059,0.04596814,147.16,147.1,1.247524]
[1724802629255,0.04596814,147.16,147.11,3.44680798]
[1724802629459,0.04596814,147.16,147.12,4.644724]
[1724802629761,0.04596814,147.16,147.13,1.247524]
[1724802629965,0.04596814,147.16,147.14,1.247524]
[1724802630266,0.04596814,147.16,147.09,105.95029895]
[1724802630555,0.04596814,147.16,147.1,1.2474964]
[1724802630751,0.04596814,147.16,147.1,4.61504195]
[1724802630954,0.04596814,147.16,147.11,1.2474964]
[1724802631154,0.04596814,147.16,147.12,4.6360976]
[1724802631358,0.04596814,147.16,147.13,4.6444964]
[1724802631563,0.04596814,147.16,147.14,1.2474964]
[1724802631765,0.04596814,147.16,147.13,3.397]
[1724802631957,0.04596814,147.16,147.14,1.24752133]
[1724802632950,0.04596814,147.16,147.12,3.4025251]
[1724802633156,0.04596814,147.16,147.09,77.27029895]
[1724802633466,0.04596814,147.16,147.12,3.3972]
[1724802633661,0.04596814,147.16,147.13,1.24752519]
[1724802634170,0.04596814,147.16,147.14,1.24752519]
[1724802634965,0.04596814,147.16,147.13,3.397]
[1724802635270,0.04596814,147.16,147.14,1.24749421]
[1724802636860,0.04596814,147.16,147.14,4.64429421]
[1724802637065,0.04596814,147.16,147.12,32.00849072]
[1724802637276,28.68,147.26,147.14,28.68]
[1724802637479,3.3944,147.25,147.15,1.24739153]
[1724802637775,3.3944,147.25,147.17,28.68]
[1724802637960,3.3944,147.25,147.19,3.3956]
[1724802638470,0.05021733,147.23,147.21,0.04553958]
[1724802638668,0.05021733,147.23,147.21,0.04759687]
[1724802638669,28.68,147.22,147.21,0.04759687]
[1724802638867,3.3955,147.21,147.17,1.24726542]
[1724802639168,29.9293,147.22,147.13,29.911]
[1724802639361,29.9293,147.22,147.14,1.24732195]
[1724802639662,33.3244,147.22,147.14,1.24732195]
[1724802639867,0.04305233,147.19,147.14,1.24732195]
[1724802640859,0.04305233,147.19,147.09,76.05489895]
[1724802640860,28.68,147.17,147.09,76.05489895]
[1724802641062,0.04933632,147.14,147.1,1.24759553]
[1724802641673,0.04933632,147.14,147.1,4.64529553]
[1724802641865,0.04933632,147.14,147.11,1.24759553]
[1724802643078,0.04933632,147.14,147.11,4.64509553]
[1724802643275,0.04933632,147.14,147.09,76.05489895]
[1724802643570,0.04933632,147.14,147.1,1.24778417]
[1724802644377,0.04933632,147.14,147.1,4.64548417]
[1724802644570,0.04933632,147.14,147.11,1.24778417]
[1724802644873,3.44623632,147.14,147.09,79.45279895]
[1724802645078,3.44623632,147.14,147.1,1.24779859]
[1724802646470,3.3972,147.13,147.09,76.05489895]
[1724802647671,3.3972,147.13,147.09,79.45279895]
[1724802647874,0.04933632,147.14,147.09,76.05489895]
[1724802648376,3.3974,147.12,147.07,3.34638061]
[1724802648687,0.04309078,147.11,147.1,3.3978]
[1724802648979,0.0495449,147.12,147.1,3.3978]
[1724802649176,0.0495449,147.12,147.09,3.398]
[1724802650974,0.0495449,147.12,147.1,3.3978]
[1724802651579,0.0495449,147.12,147.07,32.14653017]
[1724802651779,0.0495449,147.12,147.08,1.24783889]
[1724802652184,0.0495449,147.12,147.11,3.3976]
[1724802652519,0.0495449,147.12,147.11,2.3976]
[1724802653179,0.0495449,147.12,147.11,3.64539232]
[1724802654673,1.0495449,147.12,147.11,3.64539232]
[1724802656777,1.0495449,147.12,147.1,3.3977]
[1724802657774,1.0495449,147.12,147.11,3.3976]
[1724802657977,1.0495449,147.12,147.11,4.64535585]
[1724802658180,1.0495449,147.12,147.11,3.3976]
[1724802658381,1.0495449,147.12,147.11,4.64532111]
[1724802660901,1.0,147.16,147.11,1.24772111]
[1724802661490,1.0,147.16,147.14,3.3969]
[1724802662091,1.04596184,147.16,147.14,3.4401487]
[1724802662687,1.04596184,147.16,147.14,0.0432487]
[1724802663609,29.72596184,147.16,147.14,0.0432487]
[1724802664087,3.3967,147.15,147.14,0.0432487]
[1724802664287,29.72596184,147.16,147.07,3.46653017]
[1724802664503,29.72596184,147.16,147.08,1.24783796]
[1724802664504,28.68,147.11,147.08,1.24783796]
[1724802664937,28.68,147.12,147.05,3.36573661]
[1724802664946,3.3976,147.11,147.06,4.6467246]
[1724802665208,3.3976,147.11,147.07,1.2480246]
[1724802665282,0.04718299,147.1,147.07,1.2480246]
[1724802667124,28.68,147.09,147.0,6.7]
[1724802667297,0.04672108,147.06,147.01,1.24819587]
[1724802667478,0.04672108,147.06,147.04,3.3991]
[1724802667695,0.04672108,147.06,147.05,0.24819587]
[1724802668184,0.04672108,147.06,147.05,3.64719587]
[1724802668882,0.04672108,147.06,147.05,0.24819587]
[1724802669093,0.04672108,147.06,147.05,1.17023483]
[1724802670695,0.04672108,147.06,147.05,0.17023483]
[1724802670893,0.04672108,147.06,147.04,0.17023483]
[1724802672997,0.04672108,147.06,147.0,10.09321027]
[1724802673295,0.04672108,147.06,147.01,1.09539134]
[1724802673596,0.04672108,147.06,147.02,3.47961127]
[1724802673788,0.04672108,147.06,147.03,1.09539134]
[1724802674205,3.44542108,147.06,147.03,0.09539134]
[1724802675591,0.04672108,147.06,147.03,0.09539134]
[1724802677188,3.44552108,147.06,147.03,0.09539134]
[1724802677601,28.72672108,147.06,147.03,0.09539134]
[1724802677787,28.72672108,147.06,147.0,4.41914764]
[1724802677788,3.3991,147.05,147.0,4.41914764]
[1724802678049,3.3991,147.05,147.01,1.01922904]
[1724802678503,3.3991,147.05,147.02,1.01922904]
[1724802678803,0.04672108,147.06,147.03,1.01922904]
[1724802678992,0.04672108,147.06,147.04,1.01922904]
[1724802680598,0.04672108,147.06,147.03,3.3993]
[1724802682600,0.04672108,147.06,147.02,3.3996]
[1724802682793,0.04672108,147.06,147.03,1.01962208]
[1724802683329,0.04672108,147.06,147.04,1.01962208]
[1724802683534,0.04672108,147.06,147.0,1.01962208]
[1724802683826,0.04672108,147.06,147.01,1.02004257]
[1724802683996,0.04672108,147.06,147.02,4.41954257]
[1724802684195,0.04672108,147.06,147.03,1.02004257]
[1724802686909,0.04672108,147.06,147.04,1.02041036]
[1724802687105,0.04672108,147.06,147.02,3.3995]
[1724802687498,0.04672108,147.06,147.03,1.02040314]
[1724802689811,3.44542108,147.06,147.03,1.02040314]
[1724802690011,14.92542108,147.06,147.03,1.02040314]
[1724802690607,11.52672108,147.06,147.03,1.02040314]
[1724802691106,11.52672108,147.06,147.04,1.01981742]
[1724802691411,11.52672108,147.06,146.99,3.35907745]
[1724802691710,11.52672108,147.06,147.0,1.01994522]
[1724802692308,3.399,147.05,147.01,3.3999]
[1724802692516,11.52672108,147.06,147.02,1.01994522]
[1724802692809,14.92552108,147.06,147.03,1.01994522]
[1724802693027,14.92552108,147.06,147.01,3.3998]
[1724802693028,14.92552108,147.06,147.04,1.01994522]
[1724802693209,0.04672108,147.06,146.98,4.58620631]
[1724802693404,3.3993,147.04,146.99,4.42162274]
[1724802693711,0.05201508,147.03,147.0,1.02142274]
[1724802694215,0.05201508,147.03,147.0,4.42152274]
[1724802694416,0.05201508,147.03,147.01,1.02142274]
[1724802694606,0.05201508,147.03,147.02,1.02142274]
[1724802694808,0.05201508,147.03,147.02,4.42112274]
[1724802695444,11.3574052,147.12,147.06,3.3986]
[1724802695445,1.2235,147.12,147.06,3.3986]
[1724802695609,11.48,147.15,147.06,3.4623043]
[1724802695861,11.48,147.15,147.0,49.03589304]
[1724802695862,4.6145,147.15,147.1,11.48]
[1724802696009,1.2177,147.15,147.12,11.48]
[1724802696284,18.16,147.2,147.1,3.46774336]
[1724802696428,18.5355,147.22,147.16,11.48]
[1724802696616,18.5355,147.22,147.09,6.68]
[1724802696617,11.48,147.17,147.04,16.71227447]
[1724802696821,3.6604,147.22,147.07,1.02100428]
[1724802696822,11.48,147.12,147.07,1.02100428]
[1724802697115,11.48,147.12,147.1,0.04529761]
[1724802698215,28.7,147.11,147.1,0.04529761]
[1724802698519,28.7,147.11,147.05,4.50250176]
[1724802698720,28.7,147.11,147.06,1.02145816]
[1724802699111,28.7,147.11,147.06,4.42015816]
[1724802699458,28.7,147.11,147.05,3.4810436]
[1724802699459,32.0976,147.11,147.07,1.02145816]
[1724802699723,0.05182962,147.1,147.08,0.024807]
[1724802700623,28.7,147.09,147.08,0.024807]
[1724802701321,28.7,147.09,147.0,9.34767912]
[1724802701620,28.7,147.06,147.02,4.50070505]